Cogmind - Beta 16 @@@ ROGUE MODE // 2026.02.03 @ 20:38:38 Player: AngelSpirit Result: Destroyed by Y-45 Defender with Beam Rifle Performance ------------- Evolutions (0) 0 Regions Visited (4) 800 Robots Destroyed (30) 150 Value Destroyed (691) 691 Prototype IDs (24) 480 Alien Tech Used (0) 0 Bonus (350) 350 TOTAL SCORE: 2471 Bonus ------- Follower Combat Kills 50 Aligned with FarCom 300 Cogmind --------- Core Integrity 0/250 Matter 290/300 Energy 170/250 System Corruption 0% Temperature Warning (345) Movement Rolling (105) Ox1 Location -9/Mines Parts ------- > --- POWER (1) -------- Ion Engine > --- PROPULSION (2) --- Wheel Compact Wheel > --- UTILITY (2) ------ Large Storage Unit Light Armor Plating > --- WEAPON (2) ------- Heavy EM Pulse Gun Heavy EM Pulse Gun > --- INVENTORY (15) --- Flight Unit Scrap Suit Huge Storage Unit Superbattery (1500) Large Matter Pod (150) Experimental Sensor Array Hacking Suite Improved Trap Extractor (0/6) Grenade Launcher Rocket Launcher Heavy Hammer Peak State ------------ > --- POWER ------------ Light Ion Engine > --- PROPULSION ------- Compact Wheel Compact Wheel > --- UTILITY ---------- Large Storage Unit Experimental Sensor Array > --- WEAPON ----------- Heavy EM Pulse Gun Heavy EM Pulse Gun > --- INVENTORY -------- Light Ion Engine Flight Unit Scrap Suit Huge Storage Unit Large Matter Pod Light Armor Plating Hacking Suite Heavy EM Pulse Gun Grenade Launcher Rocket Launcher Heavy Hammer [Rating: 19] Favorites ----------- Power Light Ion Engine Engine Light Ion Engine Power Core Light Nuclear Core Propulsion Compact Wheel Wheel Compact Wheel Utility Large Storage Unit Device Seismic Detector Storage Large Storage Unit Protection Light Armor Plating Weapon Heavy EM Pulse Gun Energy Gun Heavy EM Pulse Gun Ballistic Gun Light Assault Rifle Launcher Grenade Launcher Build | -11 -10 -10 -10 -9 ------- Run | Yrd Mat Min Exi Min Slots Evolved . | . . . . . Power . | . . . . . Propulsion . | . . . . . Utility . | . . . . . Weapon . | . . . . . Parts Attached 27 | 7 10 6 . 4 Power 4 | 1 1 . . 2 Engine 3 | 1 1 . . 1 Core 1 | . . . . 1 Reactor . | . . . . . Propulsion 5 | 2 1 1 . 1 Treads . | . . . . . Leg . | . . . . . Wheel 5 | 2 1 1 . 1 Hover . | . . . . . Flight . | . . . . . Utility 6 | 2 2 2 . . Device 3 | 1 1 1 . . Storage 2 | 1 1 . . . Processor . | . . . . . Hackware . | . . . . . Protection 1 | . . 1 . . Artifact . | . . . . . Weapon 12 | 2 6 3 . 1 Energy Gun 6 | . 4 1 . 1 Energy Cannon . | . . . . . Ballistic Gun 2 | 2 . . . . Ballistic Cannon . | . . . . . Launcher 4 | . 2 2 . . Special Weapon . | . . . . . Impact Weapon . | . . . . . Slashing Weapon . | . . . . . Piercing Weapon . | . . . . . Special Melee Weapon . | . . . . . Unidentified Prototypes 1 | . . 1 . . Parts Lost 9 | . 4 1 . 4 Power 3 | . 1 . . 2 Propulsion 3 | . 1 1 . 1 Utility 1 | . 1 . . . Weapon 2 | . 1 . . 1 Highest Loss Streak 2 | . 2 1 . 2 To Critical Strikes . | . . . . . Average Backups 10 | . 7 12 13 12 Power . | . . . 1 . Propulsion 2 | . 3 1 1 1 Utility 4 | . 1 5 7 7 Weapon 3 | . 2 4 4 3 Tool/Special . | . . . . . Unused Backups 14 | . 3 2 . 9 Power 1 | . . . . 1 Propulsion 3 | . . 2 . 1 Utility 6 | . . . . 6 Weapon 4 | . 3 . . 1 Tool/Special . | . . . . . Average Slot Usage (%) 95 | . 93 99 100 90 Engine 10 | . 8 14 14 7 Wheel 27 | . 27 27 28 27 Device 12 | . 13 13 14 . Storage 14 | . 14 14 14 14 Energy Gun 21 | . 14 27 28 27 Ballistic Gun 6 | . 13 . . . Peak Build Rating 19 | 7 11 19 13 14 Average Rating 9 | 5 7 11 12 13 On Entrance 8 | . 7 10 12 13 Avg Prop Armor Cover (%) . | . . . . . Naked Turns . | . . . . . Heaviest Build 34 | 13 30 32 30 34 Greatest Support 32 | 32 32 32 32 32 Greatest Overweight (x) 2 | . 1 . . 2 Average Overweight (x) . | . . . . . Largest Inventory Capacity 15 | 8 15 15 15 15 Average Capacity 13 | 7 13 15 15 15 Most Carried 15 | . 14 15 15 15 Average Carried 10 | . 7 13 14 13 Final Capacity 15 | 8 15 15 15 15 Final Carried 15 | . 13 14 15 12 Class Distribution -------------------- 100% | Mutant Dominant Class ---------------- Mutant | -10/Materials Mutant | -10/Mines Mutant | -10/Exiles Mutant | -9/Mines Resources | -11 -10 -10 -10 -9 ----------- Run | Yrd Mat Min Exi Min Matter Collected 840 | 210 413 177 . 40 Remotely . | . . . . . Salvage Created 1072 | 54 545 231 . 242 Parts 54 | 3 29 14 . 8 Haulers Intercepted 2 | . 2 . . . Recyclers Shooed 1 | . 1 . . . Parts Field Recycled . | . . . . . Retrieved Matter . | . . . . . Parts Self-Destructed . | . . . . . Prevented . | . . . . . Parts Restored . | . . . . . Kills | -11 -10 -10 -10 -9 ------- Run | Yrd Mat Min Exi Min Combat Hostiles Destroyed 19 | . 6 9 . 4 Guns 11 | . 4 3 . 4 AOE 8 | . 2 6 . . Classes Destroyed 9 | 1 6 1 . 1 Worker 1 | . 1 . . . Tunneler 3 | 2 1 . . . Hauler 2 | . 2 . . . Recycler 2 | . 2 . . . Operator 2 | . 2 . . . Watcher 1 | . 1 . . . Swarmer 5 | . . 5 . . Grunt 12 | . 6 4 . 2 Sentry 1 | . . . . 1 Best Kill Streak 5 | 2 5 3 . 1 Combat Bots Only 4 | . 4 3 . 1 Max Kills in Single Turn 2 | 1 2 2 . 1 Gunslinging . | . . . . . Exploded 2 | . 1 2 . . Melee . | . . . . . Uniques/NPCs Destroyed 1 | . . . . 1 YI-UF0 (-9/Mines) Combat | -11 -10 -10 -10 -9 -------- Run | Yrd Mat Min Exi Min Hostile Shots Fired 96 | . 41 27 . 28 Missed 33 | . 16 9 . 8 Hits 63 | . 25 18 . 20 Projectile 63 | . 25 18 . 20 AOE 6 | . . . . 6 Critical Strikes 4 | . 1 2 . 1 Damage Taken 1057 | . 418 237 . 402 Core 252 | . 93 75 . 84 Absorbed by Shields . | . . . . . Core Remaining (%) 100 | 100 . . . . Volleys Fired 89 | 6 49 19 . 15 Largest 2 | 2 2 2 . 2 Hottest 90 | 40 80 90 . 90 Shots Fired 171 | 12 96 33 . 30 Gun 162 | 12 92 28 . 30 Cannon . | . . . . . Launcher 9 | . 4 5 . . Special . | . . . . . Kinetic 78 | 12 66 . . . Thermal . | . . . . . Explosive 9 | . 4 5 . . Electromagnetic 84 | . 26 28 . 30 Robot Hit Streak 9 | 2 9 5 . 9 Robot Miss Streak 4 | 1 4 2 . 3 Penetration Max . | . . . . . Secondary Targets 2 | . 1 1 . . Max Gunslinging Chain 1 | . 1 1 . . Shots Hit Robots 105 | 6 57 20 . 22 Core Hits 55 | 4 30 12 . 9 Critical Kills 2 | . 2 . . . Critical Parts Destroyed . | . . . . . Critical Strikes 3 | . 2 . . 1 Destroy 2 | . 2 . . . Corrupt 1 | . . . . 1 Melee Attacks . | . . . . . Impact . | . . . . . Slashing . | . . . . . Piercing . | . . . . . Sneak Attacks . | . . . . . Combat Hostiles . | . . . . . Follow-up Attacks . | . . . . . Damage Inflicted 2064 | 48 1016 698 . 302 Guns 1249 | 48 607 292 . 302 Cannons . | . . . . . Explosions 815 | . 409 406 . . Melee . | . . . . . Ramming . | . . . . . Kinetic 396 | 48 348 . . . Thermal 93 | . 34 59 . . Explosive 722 | . 375 347 . . Electromagnetic 853 | . 259 292 . 302 Impact . | . . . . . Slashing . | . . . . . Piercing . | . . . . . Highest Corruption . | . . . . . Average Corruption . | . . . . . Corruption Purged . | . . . . . Corruption Blocked . | . . . . . Overload Shots . | . . . . . Overflow Damage 4 | . 4 . . . Projectiles . | . . . . . Explosions 4 | . 4 . . . Melee . | . . . . . Knockbacks . | . . . . . Impact . | . . . . . Kinetic . | . . . . . Secondary . | . . . . . Self-Inflicted Damage 86 | . 59 27 . . Shots 4 | . 2 2 . . Rammed . | . . . . . Targets Rammed . | . . . . . Kicked . | . . . . . Crushed . | . . . . . Highest Temperature 376 | . 21 376 . 318 Average Temperature 87 | . 4 149 . 93 Received Heat Transfer 408 | . 198 102 . 108 Effects 1 | . . 1 . . Shutdowns 1 | . . 1 . . Siege Activations . | . . . . . Martial Activations . | . . . . . Shielding Activations . | . . . . . Robots Disrupted . | . . . . . Combat Hostiles . | . . . . . Robots Corrupted 1 | . 1 . . . Combat Hostiles . | . . . . . Parts Fried . | . . . . . Impact Corruptions . | . . . . . Robots Melted . | . . . . . Combat Hostiles . | . . . . . Parts Melted . | . . . . . Heat Transferred 50 | . 50 . . . Parts Sabotaged . | . . . . . Parts Stolen . | . . . . . Parts Stripped . | . . . . . Power Chain Reactions 2 | . 1 1 . . Alert | -11 -10 -10 -10 -9 ------- Run | Yrd Mat Min Exi Min Maximum Alert Level . | . . . . . Low Security (%) 100 | 100 100 100 . 100 Level 1 . | . . . . . Level 2 . | . . . . . Level 3 . | . . . . . Level 4 . | . . . . . Level 5 . | . . . . . High Security . | . . . . . Max Security . | . . . . . Peak Influence 142 | . 133 142 . 58 Initial 9 | . . 9 . . Average 42 | . 39 64 . 10 Influence Increases 730 | 10 305 273 . 142 Destroy 0b10 Robot/C 400 | . 120 180 . 100 Destroy 0b10 Robot/NC 55 | 10 45 . . . Destroy Leader 96 | . 36 40 . 20 Allied During Kill 7 | . . . . 7 Successful Hack 21 | . 21 . . . Select Force Hacks 30 | . 30 . . . Disable Machine 15 | . . 15 . . Destroy Structure 61 | . 23 38 . . Partial Spotted 15 | . . . . 15 Lose Combat Pursuer 30 | . 30 . . . Influence Decreases 720 | 10 281 297 . 132 Entered New Map 15 | . . 15 . . Time Decay 605 | 10 251 272 . 72 Lost Part 60 | . 30 10 . 20 Lost Ally 40 | . . . . 40 Squads Dispatched 3 | . 3 . . . Investigation 2 | . 2 . . . Extermination . | . . . . . Reinforcement 1 | . 1 . . . Assault . | . . . . . Garrison . | . . . . . Intercept . | . . . . . Searches Triggered . | . . . . . Construction Impeded . | . . . . . Haulers Reinforced . | . . . . . Active Scanning Responses . | . . . . . Cargo Convoy Interrupts . | . . . . . Stealth | -11 -10 -10 -10 -9 --------- Run | Yrd Mat Min Exi Min Distress Signals . | . . . . . Communications Jammed . | . . . . . Distress Signals . | . . . . . Times Spotted 30 | . 15 7 . 8 Peak Tracking Total 4 | . 4 3 . 2 Tactical Retreats 2 | . 1 . . 1 Traps | -11 -10 -10 -10 -9 ------- Run | Yrd Mat Min Exi Min Traps Triggered 2 | . 2 . . . Indirectly . | . . . . . Trap Hack Attempts . | . . . . . Triggered . | . . . . . Disarmed . | . . . . . Reprogrammed . | . . . . . Reused . | . . . . . Traps Extracted . | . . . . . Installed . | . . . . . Triggered . | . . . . . Machines | -11 -10 -10 -10 -9 ---------- Run | Yrd Mat Min Exi Min Machines Disabled 2 | . . 1 . 1 Max in Single Turn 1 | . . 1 . 1 Machines Repaired . | . . . . . Machines Dismantled . | . . . . . Machines Sabotaged . | . . . . . Overloaded Fab Kills . | . . . . . Hacking | -11 -10 -10 -10 -9 --------- Run | Yrd Mat Min Exi Min Machines Accessed 11 | . 8 1 2 . Terminals 6 | . 6 . . . Fabricators . | . . . . . Repair Stations 1 | . 1 . . . Recycling Units 1 | . 1 . . . Scanalyzers . | . . . . . Garrison Access . | . . . . . Total Hacks 30 | . 27 1 2 . Successful 17 | . 14 1 2 . Failed 13 | . 13 . . . Catastrophic 2 | . 2 . . . Database Lockouts . | . . . . . Manual 22 | . 21 . 1 . Terminals 22 | . 22 . . . Fabricators . | . . . . . Repair Stations 2 | . 2 . . . Recycling Units 3 | . 3 . . . Scanalyzers . | . . . . . Garrison Access . | . . . . . Terminal Hacks 7 | . 4 1 2 . Record 1 | . . . 1 . Part Schematic 1 | . 1 . . . Robot Analysis 2 | . 2 . . . Open Door 1 | . . 1 . . Locate Traps 1 | . 1 . . . Proto ID Catalog 1 | . . . 1 . Fabricator Hacks . | . . . . . Repair Station Hacks . | . . . . . Recycling Unit Hacks . | . . . . . Scanalyzer . | . . . . . Garrison Access Hacks . | . . . . . Unauthorized Hacks 10 | . 10 . . . Terminals 9 | . 9 . . . Botnet 4 | . 4 . . . Skim 5 | . 5 . . . Fabricators . | . . . . . Repair Stations . | . . . . . Recycling Units 1 | . 1 . . . Tunnel 1 | . 1 . . . Scanalyzers . | . . . . . Garrison Access . | . . . . . Data Cores Recovered 1 | . 1 . . . Used . | . . . . . Hacking Detections 8 | . 8 . . . Full Trace Events . | . . . . . Feedback Events . | . . . . . Feedback Blocked . | . . . . . Robot Schematics Acquired . | . . . . . Robots Built . | . . . . . Authchips . | . . . . . Time . | . . . . . Total Robot Build Rating . | . . . . . Part Schematics Acquired 1 | . 1 . . . Parts Built . | . . . . . Authchips . | . . . . . Time . | . . . . . Total Part Build Rating . | . . . . . Part Studies Acquired . | . . . . . Parts Repaired . | . . . . . Time . | . . . . . Parts Recycled . | . . . . . Recycled Matter . | . . . . . Retrieved Matter . | . . . . . Retrieved Components . | . . . . . Parts Scanalyzed . | . . . . . Part Schematics Acquired . | . . . . . Parts Damaged . | . . . . . Bothacking | -11 -10 -10 -10 -9 ------------ Run | Yrd Mat Min Exi Min Used RIF Installer . | . . . . . Robots Hacked . | . . . . . Non-combat . | . . . . . Combat . | . . . . . Robot Hacks Applied . | . . . . . Relay Couplers Released . | . . . . . Fabnet Peak Effective % . | . . . . . Robots Rewired . | . . . . . Allies Hacked . | . . . . . Hacks Repelled . | . . . . . Allies | -11 -10 -10 -10 -9 -------- Run | Yrd Mat Min Exi Min Total Allies 3 | . . 3 . . Largest Group 3 | . . 3 3 3 Highest-Rated Group 40 | . . 40 40 40 Highest-Rated Ally 16 | . . 16 16 16 Total Orders . | . . . . . Ally Attacks 16 | . . . . 16 Total Damage 142 | . . . . 142 Kills 2 | . . . . 2 Allies Corrupted . | . . . . . Allies Melted 1 | . . . . 1 Intel | -11 -10 -10 -10 -9 ------- Run | Yrd Mat Min Exi Min Active Infowar (turns) 1966 | 10 1007 621 322 6 Sensors 1 | . . 1 . . Seismic 1965 | 10 1007 620 322 6 Robot Analysis Total 2 | . 2 . . . Derelict Logs Recovered 2 | . . 2 . . Drone Launches . | . . . . . Drone Recoveries . | . . . . . Exploration | -11 -10 -10 -10 -9 ------------- Run | Yrd Mat Min Exi Min Turns Passed 2311 | 75 1030 662 322 222 Spaces Moved 1811 | 47 807 542 298 117 Core 1 | 1 . . . . Treads . | . . . . . Legs . | . . . . . Wheels 1810 | 46 807 542 298 117 Hover . | . . . . . Flight . | . . . . . Fastest Speed 50 | 50 100 100 100 100 Average Speed 100 | 98 100 100 100 107 Slowest Speed 130 | 100 115 100 100 130 Overloaded Moves . | . . . . . Propulsion Burnouts . | . . . . . Robots Hopped . | . . . . . Potential Cave-ins . | . . . . . Cave-ins Triggered . | . . . . . Exploration Rate (%) 60 | 4 98 98 75 25 Regions Visited 4 Branch Regions 3 Pre-discovered Areas 2 | . 1 . 1 . Known Exits Taken 2 | . . 1 1 . Unknown Exits Taken 2 | 1 1 . . . Scrap Searched 2 | . . 2 . . Spaces Dug 12 | . . 12 . . Terrain Destroyed 73 | . 24 49 . . Melee . | . . . . . Projectile . | . . . . . AOE 73 | . 24 49 . . Terrain Rammed . | . . . . . Walls Destroyed . | . . . . . Machines Disabled . | . . . . . Actions | -11 -10 -10 -10 -9 --------- Run | Yrd Mat Min Exi Min Total 2143 | 62 945 628 322 186 Wait 170 | 3 50 48 24 45 Move 1807 | 46 806 541 297 117 Hop . | . . . . . Pick Up 26 | . 19 4 1 2 Fast Attach 15 | 7 5 2 . 1 Attach 9 | . 3 2 . 4 Detach 1 | . . 1 . . Swap 11 | . 5 6 . . Drop 15 | . 8 5 . 2 Fire 89 | 6 49 19 . 15 Melee . | . . . . . Ram . | . . . . . Kick . | . . . . . Crush . | . . . . . Escape Stasis . | . . . . . Rewire . | . . . . . Trap . | . . . . . Miscellaneous . | . . . . . Route ------- -11/Scrapyard -10/Materials (discovered 6 exits: *Mat x3 / *Min x2 / Sub) -10/Mines (discovered 4 exits: *Mat x2 / *Exi / Sub) -10/Exiles (discovered 2 exits: *Min x2) -9/Mines (discovered 2 exits: *Mat x2) History --------- Turn | Location | Event 8 | -11/Scrapyard | Discovered new exit (range 16) 76 | -11/Scrapyard | Entered Materials 195 | -10/Materials | Discovered new exit (range 14) 252 | -10/Materials | Discovered new exit (range 15) 315 | -10/Materials | Build established: Mutant 376 | -10/Materials | Discovered new exit (range 4) 707 | -10/Materials | Discovered new exit (range 15) 794 | -10/Materials | Discovered new exit (range 16) 937 | -10/Materials | Identified exit to Subcaves 978 | -10/Materials | Learned location of 2 exits from Mines 1027 | -10/Materials | Loaded intel: 1 repair station location 1093 | -10/Materials | Learned 2 Mines zone layouts 1106 | -10/Materials | Entered Mines 1107 | -10/Mines | Identified exit to Materials 1108 | -10/Mines | Identified exit to Exiles 1185 | -10/Mines | Deemed a non-threat by the Exiles lab entrance 1209 | -10/Mines | Found a Scrap Suit stashed away for nefarious purposes 1213 | -10/Mines | Found Scrap Suit 1225 | -10/Mines | Received a Rocket Launcher from a helpful Derelict 1236 | -10/Mines | Learned location of 1 exit from Materials 1290 | -10/Mines | Core integrity fell below 50% 1456 | -10/Mines | Learned Materials interactive machine intel 1509 | -10/Mines | Found a damaged Exp. Sensor Array with a note attached 1512 | -10/Mines | Found Prototype Device 1512 | -10/Mines | Identified Exp. Sensor Array 1533 | -10/Mines | Met a Derelict who couldn't figure out how to use a Trap Extractor 1599 | -10/Mines | Assisted by bots powering up and referring to "LRC-V3" 1768 | -10/Mines | Entered Exiles 1768 | -10/Exiles | Accompanied by 3 allies 1769 | -10/Exiles | Identified exit to Mines 1791 | -10/Exiles | Met 8R-AWN 1809 | -10/Exiles | Met EX-HEX 1840 | -10/Exiles | Met EX-BIN 1851 | -10/Exiles | Aligned with FarCom system 1852 | -10/Exiles | Given EX-Vault access code 1875 | -10/Exiles | Opened EX-Vault 1881 | -10/Exiles | Found Superbattery 1903 | -10/Exiles | Warned to stay clear of 0b10 Research branches 1931 | -10/Exiles | Met EX-DEC 1940 | -10/Exiles | Learned location of Zion (-7) 1979 | -10/Exiles | Visited The Gauntlet 2090 | -10/Exiles | Left Exiles lab with Superbattery 2090 | -10/Exiles | Entered Mines 2090 | -9/Mines | Accompanied by 3 allies 2091 | -9/Mines | Identified exit to Materials 2222 | -9/Mines | Destroyed YI-UF0 2294 | -9/Mines | Core integrity fell below 20% 2312 | -9/Mines | Destroyed by Y-45 Defender with Beam Rifle Last Messages --------------- 02220_ The unstable cave ceiling collapses. 02222_ YI-UF0 destroyed. 02224_ The unstable cave ceiling collapses. 02226_ Acquired 9 matter. 02228_ The unstable cave ceiling collapses. 02234_ Acquired 21 matter. 02235_ R-06 Scavenger collects Wheel. 02236_ The unstable cave ceiling collapses. 02238_ Acquired Wheel. 02245_ The unstable cave ceiling collapses. 02257_ U-05 Engineer lays Concrete. 02258_ U-05 Engineer builds a Wall. 02263_ U-05 Engineer lays Concrete. 02265_ U-05 Engineer builds a Wall. 02276_ U-05 Engineer lays Concrete. 02278_ U-05 Engineer builds a Wall. 02288_ Com. Wheel destroyed. 02297_ Y-45 Defender destroyed. 02300_ Machine disabled. 02312_ Critical hit (Burn: +37). Map ----- +----------------------------------------------------+ | ?????????????????????????????????????????????????? | | ?????????????????????????????????????????????????? | | ?????????????????????????????????????????????????? | | ?????????????????????????????????????????????????? | | ?????????????????????????????????????????????????? | | ?????????????????????????????????????????????????? | | ?????????????????????????????????????????????????? | | ?????????????????????????????????????????????????? | | ?????????????????????????????????????????????????? | | ?????????????????????????????????????????????????? | | ?????????????????????????????????????????????????? | | ?????????????????????????????????????????????????? | | ?????????????????????????????????????????????????? | | ?????????????????????????????????????????????????? | | ???????????????????????????????????? #??????????? | | ???????????????????????????????????# ??????????? | | ???????????????????????????????#### #??????????? | | ??????????????????????????????# ##?????????? | | ??????????????????????????###? ?????????? | | ?????????????????????????## ## #??????????? | | ????????????????????###?## ????????????? | | ???????????????????## ## #?????????????? | | ???????????????????#"" # # #?????????????? | | ???????????????????#][ =Y[ # #?????????????? | | ???????????????????#!! %/[ #?????????????? | | ???????????????????#"" #@ #??????????????? | | ???????????????????##"?## ##??????????????? | | ???????????????????????# ##????????g??????? | | ???????????????????????## ## ##????????????????? | | ????????????????????????##### ######????????????? | | ?????????????????????????####[ ## # ####??g??????? | | ?????????????????????????# = # #####?????? | | ???????????????????##???## *% # # # # #?????? | | ???????????????????? ??# %[ ##????? | | ?????????????????????# ###[== = #????? | | ?????????????????????# ####### ##????? | | ?????????????????????#### # # #????? | | ????????????????????????## ### # #????? | | ?????????????????????????#####?##### #????? | | ?????????????????????????????????# #????? | | ????????????????????????????????## ##????? | | ?????????????????????????????#### #?????? | | ??????????????????????????#### ##?????? | | ??????????????????????????# ####??????? | | ??????????????????????????## ##?????????? | | ??????????????????????????# % " ##?????????? | | ??????????????????????????# < "" ##????????? | | ??????????????????????????# ""% # #????????? | | ??????????????????????????# # # #????????? | | ??????????????????????????#?# % # #######???? | +----------------------------------------------------+ Best States ------------- Heat Dissipation 25 Energy Generation 14 Energy Capacity 250 Matter Stores 300 Matter Capacity 300 Sight Range 16 Terrain Scan Density 10 Armor Coverage 150 Evasion (%) 40 Item Schematics ----------------- Sml. Storage Unit | -10/Materials | Hacked Robot Schematics ------------------ None Fabricated ------------ Nothing Repaired ---------- Nothing Studied --------- None Alien Tech Used ----------------- None Achievements -------------- None Challenges ------------ None Game ------ Seed MicrodissipatorResetScythe Manual? 0 Play Time 00:17:26 Cumulative 516.7 hours Start 2026.02.03 @ 20:22:19 End 2026.02.03 @ 20:38:38 Sessions 1 Manual Loads 0 Difficulty Rogue Special Mode None Game No. 175 Rogue 175 Adventurer 0 Explorer 0 Win Type - Total 17 Types 8/0/5/1/0/0/0/1/0/2 Lore% 90 Gallery% 86 Achievement% 74 Wizard Run 0 Options --------- Layout 1 ASCII 0 Keyboard 0 Movement Mouse Keybinds 0 Fullscreen 2 Font 32/SmallcapsGlow Map View 50x35 Zoom Use 0% Tactical HUD 1 Map Filters NONE Filters NONE Steam 1 RUN: f8c1d619-5824-4e5f-bdf3-f92b222d80cc